bitfinex-derivatives/quotes_ETHF0:USTF0_20250422
["timestamp","ask_amount","ask_price","bid_price","bid_amount"]
[1745283245691,4.18651652,1563.7,1563.6,20.04677]
[1745283247289,17.03248016,1563.8,1563.7,1.27899]
[1745283247290,10.77460001,1563.8,1563.7,1.27899]
[1745283247596,10.77460001,1563.8,1563.7,11.61369]
[1745283248097,1e-08,1563.8,1563.7,11.61369]
[1745283251598,1e-08,1563.8,1563.7,16.61369]
[1745283251990,1e-08,1563.8,1563.7,11.61369]
[1745283252993,1e-08,1563.8,1563.7,16.61369]
[1745283254103,6.25788015,1564.1,1564.0,1.27874]
[1745283254398,6.25788015,1564.1,1564.0,7.37974]
[1745283254599,6.25788015,1564.1,1564.0,10.58754]
[1745283254988,6.25788015,1564.1,1564.0,21.13284]
[1745283255897,0.0095868,1564.2,1564.1,1.27866]
[1745283256098,0.0095868,1564.2,1564.1,11.82396]
[1745283262510,0.0095868,1564.2,1564.1,52.62396]
[1745283263803,10.0607868,1564.2,1564.1,52.62396]
[1745283265302,6.25788015,1564.6,1564.5,1.27833]
[1745283265609,10.0512,1564.7,1564.6,1.27825]
[1745283266396,15.2867,1564.7,1564.6,1.27825]
[1745283267900,5.24678022,1564.8,1564.7,1.27817]
[1745283268209,15.09758022,1564.8,1564.7,1.27817]
[1745283268405,0.00948022,1564.8,1564.7,1.27817]
[1745283269098,10.13608022,1564.8,1564.7,1.27817]
[1745283269906,10.13608022,1564.8,1564.7,11.53917]
[1745283270410,10.13608022,1564.8,1564.7,1.27817]
[1745283271009,10.13608022,1564.8,1564.5,11.6243]
[1745283271205,10.13608022,1564.8,1564.5,21.8853]
[1745283271502,10.13608022,1564.8,1564.7,1.27817]
[1745283272194,10.13608022,1564.8,1564.7,11.56467]
[1745283272399,0.00948022,1564.8,1564.7,17.14667]
[1745283272807,10.7164,1565.0,1564.9,1.27801]
[1745283273008,10.7164,1565.0,1564.9,7.35001]
[1745283274013,10.7164,1565.0,1564.9,17.63651]
[1745283275501,5.0719,1565.1,1565.0,1.27792]
[1745283275709,5.0719,1565.1,1565.0,14.43282]
[1745283276101,10.0765,1565.2,1565.1,1.27784]
[1745283276304,10.0765,1565.2,1565.1,11.22494]
[1745283277211,5.1134,1565.3,1565.2,1.27776]
[1745283277508,5.1134,1565.3,1565.2,7.34876]
[1745283277907,10.2318,1565.3,1565.2,7.34876]
[1745283278107,10.2318,1565.3,1565.2,48.14876]
[1745283280105,11.50948,1565.3,1565.2,46.871]
[1745283280307,1.27783,1565.2,1565.0,1.2779]
[1745283280512,10.038,1565.2,1565.1,1.27784]
[1745283281607,10.038,1565.2,1565.0,46.871]
[1745283281812,10.038,1565.2,1565.1,1.27784]
[1745283282010,11.31576,1565.2,1565.0,48.14886]
[1745283282211,10.038,1565.2,1565.0,46.871]
[1745283282410,10.038,1565.2,1565.1,1.27784]
[1745283282910,10.038,1565.2,1565.0,46.871]
[1745283282911,11.31581,1565.2,1565.0,48.1489]
[1745283283112,1.27784,1565.1,1565.0,46.871]
[1745283284009,1.27784,1565.1,1565.0,48.14892]
[1745283284212,11.31582,1565.2,1565.0,48.14892]
[1745283284604,1.27784,1565.1,1565.0,46.871]
[1745283285005,1.27784,1565.1,1565.0,48.14892]
[1745283285212,11.31582,1565.2,1565.0,48.14892]
[1745283285403,4.48564,1565.1,1565.0,6.071]
[1745283285799,1.27799,1565.0,1564.9,7.34795]
[1745283286013,15.4448,1565.0,1564.9,48.14795]
[1745283286310,16.72272,1565.0,1564.9,48.14795]
[1745283286503,16.72272,1565.0,1564.9,7.34795]
[1745283286812,15.4448,1565.0,1564.9,7.34795]
[1745283287011,16.72272,1565.0,1564.9,7.34795]
[1745283287406,15.4448,1565.0,1564.9,7.34795]
[1745283287612,16.72272,1565.0,1564.9,7.34795]
[1745283288013,16.72272,1565.0,1564.9,6.07]
[1745283288311,16.72272,1565.0,1564.9,7.34801]
[1745283288514,15.4448,1565.0,1564.9,7.34801]
[1745283288706,16.72272,1565.0,1564.9,6.07]
[1745283289113,16.72272,1565.0,1564.9,7.34801]
[1745283289504,16.72272,1565.0,1564.9,6.07]
[1745283290216,20.4448,1565.0,1564.4,3.2078]
[1745283290406,3.2078,1564.8,1564.5,7.34932]
[1745283290606,1.27825,1564.6,1564.5,6.071]
[1745283291006,1.27825,1564.6,1564.5,7.34933]
[1745283291207,11.82805,1564.6,1564.5,17.33933]
[1745283291607,11.82805,1564.6,1564.5,16.061]
[1745283292009,11.82805,1564.6,1564.5,6.071]
[1745283292613,11.82805,1564.6,1564.5,7.34933]
[1745283292818,11.82805,1564.6,1564.5,6.071]
[1745283294226,10.5498,1564.6,1564.5,6.071]
[1745283294519,10.5498,1564.6,1564.5,7.34933]
[1745283294911,0.0095868,1564.7,1564.6,1.27825]
[1745283295108,0.0095868,1564.7,1564.6,11.40755]
[1745283296220,5.3916,1565.2,1565.1,1.27784]
[1745283296408,5.3916,1565.2,1565.1,4.48564]
[1745283296614,5.3916,1565.2,1565.1,3.2078]
[1745283296812,5.3916,1565.2,1565.1,56.03864]
[1745283297521,9.8994,1565.3,1565.2,1.27776]
[1745283297720,9.8994,1565.3,1565.2,17.30806]
[1745283300419,9.8994,1565.3,1565.2,16.0303]
[1745283300626,15.0130102,1565.5,1565.2,16.0303]
[1745283300819,10.6878,1565.4,1565.3,4.48542]
[1745283301015,10.6878,1565.4,1565.3,14.27938]
[1745283301625,4.48521,1565.7,1565.5,1.27749]
[1745283301814,10.6878,1565.6,1565.4,9.7939]
[1745283302214,11.96525,1565.6,1565.4,9.7939]
[1745283302522,11.96525,1565.6,1565.4,51.87147]
[1745283302823,10.6878,1565.6,1565.4,51.87147]
[1745283303523,10.6878,1565.6,1565.5,1.27752]
[1745283303925,11.96525,1565.6,1565.4,51.87144]
[1745283304125,17.50635,1565.6,1565.4,51.87144]
[1745283304323,10.5954,1565.5,1565.4,51.87144]
[1745283305433,8.3438402,1565.8,1565.4,55.5939]
[1745283305722,8.3438402,1565.8,1565.7,1.27735]
[1745283305918,8.3438402,1565.8,1565.7,7.31935]
[1745283306125,8.3438402,1566.0,1565.7,21.2466]
[1745283306426,8.3438402,1566.0,1565.9,1.27719]
[1745283306824,8.3438402,1566.0,1565.9,11.34789]
[1745283307734,9.6209502,1566.0,1565.8,8.6955]
[1745283308022,9.6209502,1566.0,1565.8,18.7662]
[1745283308023,11.82659,1565.9,1565.8,18.7662]
[1745283308232,11.82659,1565.9,1565.7,6.042]
[1745283308233,10.5494,1565.9,1565.7,6.042]
[1745283308421,10.5494,1565.9,1565.8,55.51497]
[1745283308821,8.3438402,1566.0,1565.8,55.51497]
[1745283309021,8.3438402,1566.0,1565.9,1.27719]
[1745283309226,8.3438402,1566.0,1565.9,11.50709]
[1745283310530,18.11196,1566.3,1566.1,1.27703]
[1745283310731,18.11196,1566.3,1566.2,10.2299]
[1745283311127,1.27697,1566.2,1566.0,17.9954368]
[1745283311431,4.48483,1566.1,1566.0,6.0515868]
[1745283311633,1.27703,1566.1,1566.0,6.0515868]
[1745283311923,6.70753,1566.1,1566.0,6.0515868]
[1745283312131,12.1281,1566.2,1566.1,1.27703]
[1745283312525,5.984,1566.3,1566.2,1.27695]
[1745283312720,5.984,1566.3,1566.2,11.09335]
[1745283313623,5.984,1566.3,1566.2,16.49795]
[1745283314227,0.0151,1566.4,1566.3,1.27686]
[1745283314526,8.3438402,1566.5,1566.4,1.27678]
[1745283314727,8.3438402,1566.5,1566.4,6.80568]
[1745283315035,8.3438402,1566.5,1566.4,17.63048]
[1745283315230,12.44775367,1566.9,1566.5,1.2767]
[1745283315534,13.72414367,1566.9,1566.7,1.2765]
[1745283315828,18.74752158,1566.8,1566.6,16.8648]
[1745283316032,20.02406158,1566.8,1566.6,16.8648]
[1745283316231,10.3715,1566.7,1566.6,16.8648]
[1745283316429,10.3715,1566.7,1566.6,18.14142]
[1745283316634,8.37602158,1566.8,1566.6,18.14142]
[1745283316934,18.74752158,1566.8,1566.7,14.0326]
[1745283317137,20.02398158,1566.8,1566.7,14.0326]
[1745283317332,20.02398158,1566.8,1566.6,6.04]
[1745283317333,1.27654,1566.7,1566.6,6.04]
[1745283317637,15.0979,1566.7,1566.6,6.04]
[1745283318036,9.8865,1566.7,1566.6,17.53412]
[1745283320431,9.8865,1566.7,1566.4,6.039]
[1745283320639,6.84484,1566.6,1566.4,7.31578]
[1745283320840,9.9332,1566.5,1566.4,7.31578]
[1745283321437,18.12505,1566.5,1566.0,7.3246868]
[1745283321639,1.27692,1566.3,1566.0,7.3246868]
[1745283321933,1.27703,1566.1,1566.0,0.0095868]
[1745283322544,11.21023,1566.1,1566.0,0.0095868]
[1745283322941,16.21023,1566.1,1566.0,0.0095868]
[1745283323245,1.27735,1565.7,1565.6,8.43829192]
[1745283323631,3.2078,1565.8,1565.3,4.48542]
[1745283323632,1.27752,1565.5,1565.3,4.48542]
[1745283323831,11.8706,1565.4,1565.3,3.2078]
[1745283324029,10.593,1565.4,1565.3,4.48548]
[1745283324442,0.0095868,1565.5,1565.4,1.2776]
[1745283324741,0.0095868,1565.5,1565.4,17.8586]
[1745283325140,10.6025868,1565.5,1565.4,17.8586]
[1745283326337,1e-08,1565.5,1565.4,22.8586]
[1745283327039,1e-08,1565.5,1565.4,17.8586]
[1745283327638,10.83760001,1565.5,1565.4,17.8586]
[1745283328344,1e-08,1565.5,1565.4,17.8586]
[1745283329836,1e-08,1565.5,1565.4,22.8586]
[1745283330235,1e-08,1565.5,1565.4,33.2463]
[1745283333350,1e-08,1565.5,1565.4,23.2461]
[1745283333649,1e-08,1565.5,1565.4,17.8586]
[1745283333845,9.83330001,1565.5,1565.4,17.8586]
[1745283334255,1e-08,1565.5,1565.4,17.8586]
[1745283334945,1e-08,1565.5,1565.4,22.8586]
[1745283335650,1e-08,1565.5,1565.4,48.1166]
[1745283335840,1e-08,1565.5,1565.4,58.7282]
[1745283336647,1e-08,1565.5,1565.4,63.7282]
[1745283336947,1e-08,1565.5,1565.4,58.7282]
[1745283337850,1.27752001,1565.5,1565.4,46.839]
[1745283338038,1.27752001,1565.5,1565.4,6.039]
[1745283338749,1.27752,1565.5,1565.4,6.039]
[1745283338954,1.27752,1565.5,1565.4,16.2158]
[1745283339142,1.2776,1565.4,1565.3,3.2078]
[1745283339449,4.65083001,1565.6,1565.2,0.0095868]
[1745283339450,1.27768,1565.3,1565.2,0.0095868]
[1745283339747,1.27768,1565.3,1565.2,40.8095868]
[1745283339945,6.27768,1565.3,1565.2,1e-08]
[1745283341947,21.70968,1565.3,1565.2,1e-08]
[1745283342954,1.27817,1564.7,1564.6,3.2078]
[1745283343252,3.19502,1565.0,1564.6,45.28605]
[1745283343440,1.27817,1564.7,1564.6,45.28605]
[1745283343645,1.27817,1564.7,1564.6,3.2078]
[1745283344251,1.27825,1564.6,1564.5,54.1343868]
[1745283344451,11.67565,1564.6,1564.5,54.1343868]
[1745283345048,11.67565,1564.6,1564.5,40.8095868]
[1745283345250,11.67565,1564.6,1564.5,44.0173868]
[1745283345551,11.67565,1564.6,1564.5,1e-08]
[1745283345764,10.3974,1564.6,1564.3,1.27843]
[1745283346056,1.27841,1564.4,1564.3,42.07843]
[1745283346244,10.3974,1564.6,1564.2,3.2078]
[1745283346245,1.2785,1564.3,1564.2,3.2078]
[1745283346453,1.2785,1564.3,1564.2,4.47707609]
[1745283346750,8.5806,1564.9,1564.2,62.94925609]
[1745283346949,14.077,1564.9,1564.5,3.2078]
[1745283347157,0.0095868,1564.7,1564.6,12.03273]
[1745283347953,1.2877568,1564.7,1564.6,10.7545]
[1745283348149,0.0095868,1564.7,1564.6,12.03275]
[1745283351963,5.2739,1565.2,1564.7,3.19543]
[1745283352161,6.55166,1565.2,1564.9,4.48577]
[1745283352459,6.55166,1565.2,1565.0,10.4847]
[1745283352663,6.55168,1565.2,1565.0,10.4847]
[1745283352954,1.27773,1565.3,1565.1,1.27783]
[1745283353160,1.2873168,1565.3,1565.2,10.4847]
[1745283353963,1.2778,1565.2,1565.0,40.8]
[1745283354258,13.63873,1565.2,1564.9,0.0095868]
[1745283354563,1.27792,1565.0,1564.9,1.2875968]
[1745283354858,1.27792,1565.0,1564.9,1e-08]
[1745283355057,6.27792,1565.0,1564.9,1e-08]
[1745283355256,16.72212,1565.0,1564.9,1e-08]
[1745283357460,22.16132,1565.0,1564.9,1e-08]
[1745283361057,17.16132,1565.0,1564.9,1e-08]
[1745283361260,22.16132,1565.0,1564.9,1e-08]
[1745283363262,1.27858,1564.2,1564.1,16.5344]
[1745283363462,1.27858,1564.2,1564.1,16.52509609]
[1745283364065,1.27856,1564.3,1564.1,21.52509609]
[1745283364269,1.2785,1564.3,1564.2,1.27857]
[1745283364473,4.4958468,1564.4,1564.3,1.2785]
[1745283364671,3.20808289,1564.4,1564.3,1.2785]
[1745283364869,3.20808289,1564.4,1564.3,6.2785]
[1745283365070,4.48649289,1564.4,1564.3,11.1297]
[1745283365266,0.0095868,1564.4,1564.3,11.1297]
[1745283365660,3.2078,1564.8,1564.3,16.1297]
[1745283365865,1.27817,1564.7,1564.6,1.27819]
[1745283366370,1.27817,1564.7,1564.6,6.48289]
[1745283366564,1.27806,1564.9,1564.7,1.27817]
[1745283366767,1.27806,1564.9,1564.6,5.2047]
[1745283366966,1.27801,1564.9,1564.7,5.996]
[1745283367268,1.27809,1564.8,1564.7,5.996]
[1745283367661,1.27809,1564.8,1564.7,9.2038]
[1745283367861,1.27809,1564.8,1564.7,7.27417]
[1745283368068,1.27803,1564.9,1564.8,1.27808]
[1745283369163,1.2875468,1565.0,1564.8,4.48582]
[1745283369366,1.2875468,1565.0,1564.8,1.27803]
[1745283369566,1.27809,1564.8,1564.7,5.996]
[1745283372178,1.27809,1564.8,1564.7,7.27417]
[1745283372364,1.27805,1564.9,1564.8,1.27808]
[1745283372671,1.27807,1564.9,1564.8,1.27806]
[1745283372859,1.27807,1564.9,1564.7,7.27409]
[1745283373063,1.27807,1564.9,1564.8,1.27809]
[1745283373271,13.9236368,1565.0,1564.7,5.996]
[1745283373470,1.27809,1564.8,1564.7,5.996]
[1745283373972,1.27817,1564.7,1564.6,5.2197]
[1745283374173,1.27817,1564.7,1564.6,6.49795]
[1745283374372,1.27817,1564.7,1564.6,5.2047]
[1745283374974,1.27817,1564.7,1564.6,6.48295]
[1745283375174,1.27817,1564.7,1564.6,5.2047]
[1745283376275,1.27825,1564.6,1564.5,5.1117]
[1745283376776,1.27825,1564.6,1564.5,5.0967]
[1745283376969,17.09978,1564.7,1564.3,8.4175]
[1745283377175,1.27841,1564.4,1564.3,12.4842]
[1745283377373,1.2784,1564.5,1564.4,1.27841]
[1745283377570,1.27832,1564.6,1564.4,9.8384]
[1745283377771,1.27832,1564.6,1564.5,1.27832]
[1745283378079,1.27833,1564.5,1564.4,11.11675]
[1745283378579,1.27833,1564.5,1564.4,9.8384]
[1745283379873,11.90913,1564.5,1564.4,9.8384]
[1745283380376,1.27833,1564.5,1564.4,9.8384]
[1745283381679,1.27833,1564.5,1564.4,11.11681]
[1745283382176,1.27833,1564.5,1564.4,9.8384]
[1745283383176,12.12633,1564.5,1564.4,9.8384]
[1745283383770,1.27833,1564.5,1564.4,9.8384]
[1745283384878,11.24513,1564.5,1564.4,9.8384]
[1745283385076,11.24513,1564.5,1564.2,0.015]
[1745283385077,1.2785,1564.3,1564.2,0.015]
[1745283385277,1.2785,1564.3,1564.2,10.20589609]
[1745283385579,1.2785,1564.3,1564.2,10.2002]
[1745283387281,1.27858,1564.2,1564.1,0.0057]
[1745283387482,17.27678,1564.2,1564.1,0.0057]
[1745283387884,1.27866,1564.1,1564.0,15.7199868]
[1745283389279,1.27866,1564.1,1564.0,16.9987268]
[1745283389670,17.2864268,1564.2,1564.0,22.4698268]
[1745283389974,6.5408268,1564.2,1564.1,10.5048]
[1745283391274,17.2784268,1564.2,1564.1,10.5048]
[1745283391880,17.2784268,1564.2,1564.1,11.78346]
[1745283392185,17.2784268,1564.2,1564.1,10.5048]
[1745283393284,1.27866,1564.1,1564.0,1.2883068]
[1745283393583,1.27866,1564.1,1564.0,0.0095868]
[1745283394282,1.27866,1564.1,1564.0,1.2883268]
[1745283394783,1.27866,1564.1,1564.0,0.0095868]
[1745283394980,11.92226,1564.1,1564.0,10.8198868]
[1745283395584,11.92226,1564.1,1564.0,0.0095868]
[1745283395781,15.13006,1564.1,1564.0,0.0095868]
[1745283396574,4.48646,1564.1,1564.0,0.0095868]
[1745283396975,1.27866,1564.1,1564.0,10.1665868]
[1745283397175,11.76866,1564.1,1564.0,10.1665868]
[1745283397986,0.0095868,1564.2,1564.1,1.27866]
[1745283398379,1.2881668,1564.2,1564.1,1.27866]
[1745283400386,1.27866,1564.1,1564.0,10.1665868]
[1745283400589,11.21756,1564.1,1564.0,10.1665868]
[1745283400778,16.24946,1564.1,1564.0,10.1665868]
[1745283401181,0.0095868,1564.2,1564.0,10.1665868]
[1745283401387,0.0095868,1564.2,1564.1,4.48646]
[1745283401576,0.0095868,1564.2,1564.1,1.27866]
[1745283401780,0.0095868,1564.2,1564.1,11.54716]
[1745283401990,1.2881668,1564.2,1564.1,14.75496]
[1745283402287,0.0095868,1564.2,1564.1,11.54716]
[1745283403085,0.0095868,1564.2,1564.0,5.9855868]
[1745283403294,1.27866,1564.1,1564.0,10.1675868]
[1745283403790,11.68896,1564.1,1564.0,10.1675868]
[1745283404086,11.68896,1564.1,1564.0,0.0095868]
[1745283404292,14.89676,1564.1,1564.0,0.0095868]
[1745283404792,19.89676,1564.1,1564.0,0.0095868]
[1745283407190,14.89676,1564.1,1564.0,0.0095868]
[1745283407393,14.89676,1564.1,1564.0,10.4103868]
[1745283408301,19.07665966,1564.1,1564.0,10.4103868]
[1745283409901,19.07665966,1564.1,1564.0,11.6891268]
[1745283410086,8.66635966,1564.1,1564.0,11.6891268]
[1745283410286,8.66635966,1564.1,1564.0,17.2457268]
[1745283410496,8.66635966,1564.1,1564.0,15.9669868]
[1745283410891,8.66635966,1564.1,1564.0,17.2457268]
[1745283411291,4.48646,1564.1,1564.0,17.2457268]
[1745283411494,4.48646,1564.1,1564.0,15.9669868]
[1745283412294,14.91586,1564.1,1564.0,15.9669868]
[1745283412898,14.91586,1564.1,1564.0,10.4103868]
[1745283413496,1.27874,1564.0,1563.9,0.0057]
[1745283413700,11.70814,1564.0,1563.9,0.0057]
[1745283413999,11.70814,1564.0,1563.9,1.27881]
[1745283414000,1.27879,1564.0,1563.9,1.27881]
[1745283414497,1.27882,1563.9,1563.8,12.0938368]
[1745283414892,1.2788,1564.0,1563.9,1.27882]
[1745283415492,4.48651,1564.1,1564.0,1.27874]
[1745283415797,4.18948646,1564.2,1564.1,1.27866]
[1745283416689,4.18948646,1564.2,1564.1,17.27376]
[1745283417599,4.18948646,1564.2,1564.1,25.48156]
[1745283417800,4.17031287,1564.2,1564.1,31.45856]
[1745283417991,13.63779359,1564.5,1564.4,1.27841]
[1745283417992,7.37811287,1564.5,1564.4,1.27841]
[1745283418296,8.64713896,1564.5,1564.4,1.27841]
[1745283418499,7.36880896,1564.5,1564.4,1.27841]
[1745283418700,4.17031287,1564.5,1564.4,1.27841]
[1745283419296,4.17031287,1564.5,1564.4,11.30321]
[1745283420000,5.44864287,1564.5,1564.4,10.0248]
[1745283420293,7.37811287,1564.5,1564.2,8.4811]
[1745283420499,5.44867287,1564.5,1564.3,11.30326]
[1745283421099,5.44867287,1564.5,1564.3,10.0248]
[1745283421300,5.44867287,1564.5,1564.3,11.30324]
[1745283421499,1.27841,1564.4,1564.3,11.30324]
[1745283421991,4.17031287,1564.5,1564.4,1.27841]
[1745283422193,2.62467287,1564.5,1564.4,10.43921]
[1745283422399,0.0095868,1564.6,1564.5,1.27833]
[1745283422600,0.0095868,1564.6,1564.5,17.65523]
[1745283422898,10.42999359,1564.9,1564.8,1.27809]
[1745283423195,12.44775367,1565.1,1565.0,1.27792]
[1745283423400,12.44775367,1565.1,1565.0,4.48572]
[1745283423600,12.44775367,1565.1,1565.0,9.48572]
[1745283423897,12.44775367,1565.1,1565.0,4.48572]
[1745283426401,12.44775367,1565.1,1565.0,31.11582]
[1745283426897,10.6711,1565.5,1565.4,1.2776]
[1745283427104,19.1819,1565.7,1565.6,1.27743]
[1745283427294,15.9741,1565.7,1565.6,1.27743]
[1745283427702,17.25148,1565.7,1565.5,1.27746]
[1745283427902,10.6711,1565.6,1565.5,11.99986]
[1745283428100,11.94853,1565.6,1565.5,11.99986]
[1745283428308,10.6711,1565.6,1565.5,11.99986]
[1745283430304,5.303,1565.7,1565.6,1.27743]
[1745283432203,6.5804,1565.7,1565.5,10.7224]
[1745283432508,10.4131,1565.6,1565.5,11.99985]
[1745283432807,5.303,1565.7,1565.6,1.27743]
[1745283433208,11.60344,1565.8,1565.7,1.27735]
[1745283433801,1.27735,1565.7,1565.6,1.27737]
[1745283434106,1.27742,1565.7,1565.6,1.27743]
[1745283434506,1.27739,1565.7,1565.6,1.27741]
[1745283434808,10.3261,1565.8,1565.5,11.99986]
[1745283435010,1.27742,1565.7,1565.6,1.27743]
[1745283435504,11.60341,1565.8,1565.7,1.27735]
[1745283435710,10.6273,1565.9,1565.8,1.27727]
[1745283436001,11.90449,1565.9,1565.8,1.27727]
[1745283436206,21.0294,1565.9,1565.8,1.27727]
[1745283437108,22.30659,1565.9,1565.8,1.27727]
[1745283437801,21.0294,1565.9,1565.8,1.27727]
[1745283438913,1.27701,1566.2,1566.1,1.27703]
[1745283439107,6.38041,1566.2,1566.1,1.27703]
[1745283439405,11.38041,1566.2,1566.0,1.28264]
[1745283439605,1.27703,1566.1,1566.0,1.28264]
[1745283439807,1.27703,1566.1,1566.0,1.27704]
[1745283440006,1.27711,1566.0,1565.9,1.27715]
[1745283440309,8.338,1566.0,1565.8,7.22525]
[1745283440515,9.8454,1565.9,1565.8,1.28295]
[1745283441098,9.8454,1565.9,1565.8,1.27725]
[1745283441305,1.27727,1565.8,1565.7,0.0095868]
[1745283441511,10.05507,1565.8,1565.7,0.0095868]
[1745283441911,10.05507,1565.8,1565.7,1.2869368]
[1745283442412,8.7778,1565.8,1565.7,1.2869368]
[1745283442601,10.05507,1565.8,1565.7,1.2869368]
[1745283444011,8.7778,1565.8,1565.7,1.2869368]
[1745283444215,5.57,1565.8,1565.7,1.2869368]
[1745283445013,9.8454,1565.9,1565.8,1.27727]
[1745283445215,9.8454,1565.9,1565.8,11.51927]
[1745283445812,8.338,1566.0,1565.9,1.27719]
[1745283446113,5.1302,1566.0,1565.9,4.48499]
[1745283446507,5.1302,1566.0,1565.9,14.72699]
[1745283447410,5.2185,1566.4,1566.1,1.27703]
[1745283447601,5.2185,1566.4,1566.3,1.27686]
[1745283447602,15.1566,1566.4,1566.3,1.27686]
[1745283448010,15.1566,1566.4,1566.3,11.99776]
[1745283448513,15.1566,1566.4,1566.1,5.947]
[1745283448813,15.6301,1566.3,1566.2,1.2769]
[1745283449205,5.2185,1566.4,1566.3,1.27686]
[1745283449407,5.2185,1566.4,1566.3,11.99776]
[1745283450516,5.2185,1566.4,1566.3,1.27686]
[1745283451715,5.2185,1566.4,1566.1,7.22398]
[1745283451913,15.265,1566.3,1566.1,7.22398]
[1745283452112,9.8338,1566.2,1566.1,7.22398]
[1745283454615,5.4312,1566.3,1566.2,1.27695]
[1745283455018,5.4312,1566.3,1566.2,11.98355]
[1745283455816,15.3791,1566.4,1566.3,1.27686]
[1745283456017,16.65588,1566.4,1566.3,1.27686]
[1745283456315,15.3791,1566.4,1566.3,1.27686]
[1745283456718,5.101,1566.6,1566.4,1.27672]
[1745283456912,11.4373,1566.5,1566.4,4.48452]
[1745283457218,10.1606,1566.5,1566.4,4.48452]
[1745283457807,5.2888,1566.7,1566.4,3.2078]
[1745283458009,5.2888,1566.7,1566.6,1.27662]
[1745283458212,3.2078,1567.3,1566.6,12.32236]
[1745283458410,11.67856,1567.2,1566.8,3.19115]
[1745283458713,11.67856,1567.2,1567.1,1.27621]
[1745283458917,10.4024,1567.2,1567.1,1.27621]
[1745283460722,10.4024,1567.2,1567.0,9.7894]
[1745283460923,11.67857,1567.2,1567.0,9.7894]
[1745283461223,11.67857,1567.2,1567.1,1.27621]
[1745283462525,10.4024,1567.2,1567.1,1.27621]
[1745283462722,11.95898,1567.3,1567.2,1.27613]
[1745283462925,11.95898,1567.3,1567.1,1.27616]
[1745283463324,3.2078,1567.5,1567.2,3.2078]
[1745283463624,10.2593,1567.6,1567.4,1.27592]
[1745283463820,13.4671,1567.6,1567.4,1.27597]
[1745283464020,11.53514,1567.6,1567.4,1.27597]
[1745283464425,11.53514,1567.6,1567.3,11.88709]
[1745283464426,1.27589,1567.5,1567.3,11.88709]
[1745283464633,1.27589,1567.5,1567.4,1.27597]
[1745283464816,1.27589,1567.5,1567.3,10.6111]
[1745283465120,10.2593,1567.6,1567.4,1.27597]
[1745283465320,10.2593,1567.6,1567.5,1.27589]
[1745283465521,11.53511,1567.6,1567.5,1.27589]
[1745283466120,10.4005,1567.7,1567.5,1.27589]
[1745283466325,1.27583,1567.6,1567.5,1.27587]
[1745283466628,11.67628,1567.7,1567.5,12.02479]
[1745283466822,9.8492,1567.6,1567.5,12.02479]
[1745283467530,11.12501,1567.6,1567.5,12.02479]
[1745283467827,1.27589,1567.5,1567.4,1.27591]
[1745283468030,11.12506,1567.6,1567.4,1.27591]
[1745283469028,11.12506,1567.6,1567.5,1.27589]
[1745283469221,11.12506,1567.6,1567.3,10.7489]
[1745283469421,11.12506,1567.6,1567.5,0.0056]
[1745283469622,11.12506,1567.6,1567.5,10.9317]
[1745283469830,11.12506,1567.6,1567.5,0.0056]
[1745283470022,19.33286,1567.6,1567.5,0.0056]
[1745283471331,19.33286,1567.6,1567.2,5.92]
[1745283471332,1.27605,1567.3,1567.2,5.92]
[1745283472030,1.27613,1567.2,1567.1,18.12128]
[1745283472229,1.27613,1567.2,1567.1,16.8451]
[1745283472425,1.27613,1567.2,1567.1,18.12131]
[1745283472625,17.74061,1567.3,1567.2,1.27613]
[1745283472823,17.74061,1567.3,1567.2,12.19023]
[1745283473432,5.556,1567.3,1567.2,12.19023]
[1745283473622,5.556,1567.3,1567.2,15.39803]
[1745283473823,6.83205,1567.3,1567.2,15.39803]
[1745283474331,4.48364,1567.6,1567.2,22.31222]
[1745283474626,1.2759,1567.5,1567.4,1.27592]
[1745283474827,10.9085,1567.7,1567.4,1.27592]
[1745283475025,1.27581,1567.6,1567.5,10.9141]
[1745283475422,1.27581,1567.6,1567.5,12.18999]
[1745283475934,1.27581,1567.6,1567.5,10.9141]
[1745283476431,1.27581,1567.6,1567.5,12.18999]
[1745283476624,11.22631,1567.6,1567.5,12.18999]
[1745283476825,11.22631,1567.6,1567.5,10.9141]
[1745283478439,1.27589,1567.5,1567.4,7.19396]
[1745283479439,1.27589,1567.5,1567.4,5.918]
[1745283479631,1.27613,1567.2,1567.1,5.918]
[1745283479934,1.27613,1567.2,1567.1,17.74451]
[1745283480730,11.2118,1567.3,1567.2,1.27613]
[1745283481031,5.0769,1567.5,1567.4,1.27597]
[1745283481238,6.35279,1567.5,1567.4,1.27597]
[1745283481438,5.0769,1567.5,1567.2,13.7581]
[1745283481738,1.27603,1567.4,1567.3,10.8417]
[1745283481928,11.44883,1567.4,1567.3,10.8417]
[1745283482426,10.1728,1567.4,1567.2,5.895]
[1745283482621,1.27605,1567.3,1567.2,16.7367]
[1745283483035,11.44885,1567.3,1567.2,16.7367]
[1745283483833,11.47457,1567.5,1567.3,1.27605]
[1745283483834,1.27602,1567.4,1567.3,1.27605]
[1745283484133,1.27621,1567.1,1567.0,15.66187]
[1745283484333,1.2762,1567.2,1567.0,26.50357]
[1745283484737,15.4811,1567.3,1567.1,1.27616]
[1745283484938,8.2847,1567.5,1567.1,10.1294]
[1745283485129,9.56065,1567.5,1567.1,10.1294]
[1745283485436,6.35284,1567.5,1567.4,1.27597]
[1745283485739,1.27603,1567.4,1567.3,7.17103]
[1745283485936,1.27603,1567.4,1567.3,16.0244]
[1745283486123,1.27603,1567.4,1567.3,17.30045]
[1745283487838,16.57196,1567.5,1567.3,17.30045]